bitfinex/quotes_SOLUSD_20240620
["timestamp","ask_amount","ask_price","bid_price","bid_amount"]
[1718886948439,7.19,139.09,139.03,7.1923]
[1718886948625,7.19,139.09,139.04,7.192]
[1718886948813,7.1892,139.1,139.04,7.192]
[1718886949008,20.0,139.11,139.02,0.34]
[1718886949331,7.191,139.07,139.03,0.17]
[1718886950110,7.191,139.07,139.01,13.7047]
[1718886950309,7.1911,139.06,139.01,13.7047]
[1718886950628,7.1907,139.07,139.01,13.7047]
[1718886950806,7.1912,139.06,139.01,13.7047]
[1718886951009,7.1908,139.07,139.01,13.7047]
[1718886951540,7.1908,139.07,139.02,7.1931]
[1718886951741,17.9766,139.07,138.99,7.1946]
[1718886952039,20.0,139.06,138.99,7.1946]
[1718886952637,7.1918,139.05,139.0,7.1942]
[1718886952838,27.1912,139.06,139.0,7.1942]
[1718886953533,7.1918,139.05,138.99,7.1946]
[1718886953920,20.0,139.06,138.98,0.51]
[1718886953921,20.0,139.06,139.0,0.17]
[1718886954238,33.6766,139.11,139.01,7.1935]
[1718886954239,7.1909,139.07,139.01,7.1935]
[1718886954435,27.1894,139.1,139.0,0.17]
[1718886954646,7.1896,139.09,139.04,7.1918]
[1718886954810,20.0,139.08,139.04,7.1918]
[1718886955011,20.0,139.08,139.03,7.1925]
[1718886955414,20.0,139.08,139.0,0.17]
[1718886955635,20.0,139.1,139.0,0.17]
[1718886955827,7.1908,139.07,139.01,7.1932]
[1718886956645,7.1908,139.07,139.02,7.1931]
[1718886957444,7.1902,139.08,139.03,7.1925]
[1718886958215,7.1906,139.07,139.02,7.1929]
[1718886958736,7.1906,139.07,139.01,7.5336]
[1718886958931,7.1911,139.06,139.01,7.3636]
[1718886959135,37.9738,139.1,139.01,7.3636]
[1718886959320,7.1908,139.07,139.01,7.3636]
[1718886959749,7.1908,139.07,139.02,7.1931]
[1718886959948,7.1903,139.08,139.03,7.1925]
[1718886960339,27.1891,139.1,139.05,7.1916]
[1718886960639,7.1906,139.07,139.02,7.3629]
[1718886960824,20.0,139.1,139.05,7.1915]
[1718886961016,27.1893,139.1,139.04,7.1919]
[1718886961216,7.1896,139.09,139.04,7.1919]
[1718886961960,25.43581805,139.13,139.05,0.17]
[1718886962126,7.1887,139.11,139.05,0.34]
[1718886962350,17.9689,139.13,139.04,7.3621]
[1718886962528,7.19,139.09,139.03,7.3623]
[1718886962735,17.9689,139.13,139.05,0.17]
[1718886963043,7.1888,139.11,139.06,7.1908]
[1718886963545,7.1887,139.11,139.05,7.3614]
[1718886964041,7.1887,139.11,139.06,7.1911]
[1718886964823,7.1887,139.11,139.05,7.3614]
[1718886965057,293.24664401,139.15,139.04,7.1921]
[1718886965058,0.17,139.14,139.04,7.1921]
[1718886965351,0.17,139.14,138.97,6.1034]
[1718886965352,72.83883386,139.14,138.98,20.0]
[1718886965528,17.9764,139.08,138.98,20.0]
[1718886965845,20.0,139.07,138.98,20.0]
[1718886966452,7.1907,139.07,139.02,7.1929]
[1718886966634,37.9738,139.1,138.97,32.2234]
[1718886966829,7.1919,139.05,138.99,7.1945]
[1718886967319,7.1913,139.06,138.97,32.2234]
[1718886967522,7.1913,139.06,138.97,6.1034]
[1718886968143,7.1922,139.04,138.99,7.1946]
[1718886969123,7.1913,139.06,139.0,7.1942]
[1718886969421,45.0,139.09,139.02,7.1928]
[1718886969615,27.1901,139.08,139.03,7.1926]
[1718886969821,27.1901,139.08,139.02,7.1929]
[1718886970128,7.1913,139.06,139.01,7.1934]
[1718886970454,20.0,139.08,139.0,0.17]
[1718886970755,20.0,139.08,139.0,7.194]
[1718886970947,7.1907,139.07,139.02,7.193]
[1718886971248,7.15748534,139.14,139.02,0.17]
[1718886971438,20.0,139.13,139.02,0.34]
[1718886971744,20.0,139.13,139.04,0.17]
[1718886971951,7.1889,139.11,139.05,7.1914]
[1718886972243,7.1891,139.1,139.05,7.1914]
[1718886972744,20.0,139.14,139.06,0.17]
[1718886973049,7.1891,139.1,139.06,0.17]
[1718886973253,7.1891,139.1,139.05,6.4096]
[1718886973548,17.97,139.13,139.06,0.51]
[1718886973724,7.1882,139.12,139.06,0.51]
[1718886973930,20.0,139.14,139.06,7.5309]
[1718886974130,7.189,139.1,139.05,6.4096]
[1718886974329,7.1886,139.11,139.05,13.6012]
[1718886974559,7.1886,139.11,139.06,0.17]
[1718886975143,7.1881,139.12,139.06,7.361]
[1718886975647,7.1887,139.11,139.06,0.17]
[1718886976239,17.9689,139.13,139.04,0.17]
[1718886976436,7.1913,139.06,139.01,6.2183]
[1718886976851,7.1895,139.09,139.04,7.1921]
[1718886977065,0.17,139.11,139.01,6.2183]
[1718886977227,7.1912,139.06,139.01,13.4118]
[1718886977952,7.1907,139.07,139.01,13.4118]
[1718886978251,20.0,139.06,139.02,7.1931]
[1718886978754,20.0,139.06,139.03,7.1926]
[1718886978960,27.1906,139.07,139.02,7.193]
[1718886979343,27.1906,139.07,139.01,13.4119]
[1718886979658,7.1912,139.06,139.01,13.4119]
[1718886979875,27.1917,139.05,138.97,6.3396]
[1718886980156,20.0,139.05,138.97,6.3396]
[1718886980357,7.1927,139.03,138.98,7.1949]
[1718886980729,20.0,139.02,138.98,7.1949]
[1718886981045,20.0,139.02,138.99,7.1946]
[1718886981264,20.0,139.02,138.98,7.195]
[1718886981641,20.0,139.02,138.99,7.1946]
[1718886981958,27.1926,139.03,138.98,7.1952]
[1718886982882,20.0,139.03,138.98,7.1952]
[1718886984573,27.1927,139.03,138.98,7.1952]
[1718886984919,20.0,139.03,138.97,6.5096]
[1718886985085,20.0,139.06,138.98,0.17]
[1718886985301,45.0,139.05,138.98,0.17]
[1718886985480,20.0,139.04,138.98,0.17]
[1718886985780,20.0,139.04,139.0,7.1941]
[1718886986782,20.0,139.04,138.98,0.17]
[1718886986783,20.0,139.04,138.99,7.1945]
[1718886987464,20.0,139.04,138.96,0.34]
[1718886987659,7.1936,139.02,138.96,7.536]
[1718886987853,20.0,139.01,138.96,7.536]
[1718886988277,20.0,139.01,138.97,7.1957]
[1718886989069,15.4617,139.07,138.96,0.17]
[1718886989280,20.0,139.06,138.96,20.34]
[1718886989470,27.1914,139.06,139.0,7.1939]
[1718886989792,7.1917,139.05,139.0,7.1939]
[1718886989967,20.0,139.04,139.0,7.1939]
[1718886990179,7.1929,139.03,138.97,7.5355]
[1718886990490,20.0,139.02,138.97,7.1953]
[1718886990668,20.0,139.02,138.97,7.1955]
[1718886991367,20.0,139.02,138.96,7.1963]
[1718886991368,7.194,139.01,138.96,7.1963]
[1718886991565,20.0,139.0,138.96,7.1963]
[1718886992569,20.0,139.0,138.95,7.1966]
[1718886993596,20.0,139.0,138.93,0.17]
[1718886993891,7.1946,139.0,138.94,7.1972]
[1718886994070,27.1949,138.99,138.94,7.1972]
[1718886994267,7.1949,138.99,138.94,7.1972]
[1718886994597,20.0,138.98,138.94,7.1972]
[1718886994763,20.0,138.98,138.9,26.13]
[1718886994963,7.1971,138.95,138.87,6.0145]
[1718886995170,7.1979,138.93,138.87,6.0145]
[1718886995379,7.1979,138.93,138.87,7.2007]
[1718886995563,27.1984,138.92,138.87,7.2007]
[1718886996180,27.1984,138.92,138.84,32.3257]
[1718886996383,20.0,138.92,138.88,7.2001]
[1718886996686,7.1984,138.92,138.87,7.2008]
[1718886996886,27.199,138.91,138.84,32.3257]
[1718886997263,20.0,138.91,138.86,7.2014]
[1718886997694,27.1989,138.91,138.86,7.2014]
[1718886997865,27.1989,138.91,138.85,7.2019]
[1718886998684,20.0,138.91,138.86,7.2012]
[1718886999484,20.0,138.91,138.86,7.2014]
[1718886999691,27.1993,138.91,138.82,0.17]
[1718886999868,27.1993,138.91,138.85,7.2018]
[1718887000284,20.0,138.91,138.85,7.2018]
[1718887000591,27.1992,138.91,138.85,7.2018]
[1718887000788,27.1992,138.91,138.82,20.68]
[1718887000789,20.0,138.91,138.87,7.2009]
[1718887000963,27.1989,138.91,138.86,7.2012]
[1718887001172,27.1989,138.91,138.85,7.2019]
[1718887001472,7.1994,138.9,138.85,7.2019]
[1718887001672,27.2,138.89,138.84,7.2023]
[1718887001878,20.0,138.88,138.84,7.2023]
[1718887002972,20.0,138.89,138.84,7.2023]
[1718887003491,27.1999,138.89,138.84,7.2023]
[1718887003887,67.159,138.88,138.8,7.2023]
[1718887004083,7.2034,138.83,138.8,7.2023]
[1718887004278,20.0,138.82,138.73,26.13]
[1718887004681,27.2035,138.82,138.73,26.13]
[1718887004885,27.2035,138.82,138.76,7.2064]
[1718887005481,7.2042,138.81,138.73,26.13]
[1718887006000,20.0,138.82,138.7,15.99999941]
[1718887006001,20.0,138.8,138.76,7.2066]
[1718887006375,27.2047,138.8,138.71,32.3596]
[1718887006579,27.2047,138.8,138.74,7.2073]
[1718887006779,20.0,138.8,138.71,32.3596]
[1718887006974,20.0,138.8,138.75,7.207]
[1718887007178,20.0,138.8,138.75,7.2071]
[1718887007410,27.2046,138.8,138.74,7.2075]
[1718887008209,20.0,138.8,138.71,32.3596]
[1718887008403,20.0,138.8,138.75,7.207]
[1718887008609,27.2047,138.8,138.75,7.207]
[1718887008799,27.2047,138.8,138.74,7.2076]
[1718887009199,27.2047,138.8,138.75,7.2071]
[1718887009514,20.0,138.8,138.75,7.2071]
[1718887009879,27.2047,138.8,138.74,7.2075]
[1718887010090,7.2052,138.79,138.74,7.2075]
[1718887010384,7.2057,138.78,138.73,7.2078]
[1718887010577,7.2051,138.79,138.73,7.208]
[1718887010778,20.0,138.8,138.73,7.208]
[1718887010779,20.0,138.78,138.73,7.2082]
[1718887011006,27.2056,138.78,138.72,7.2085]
[1718887011184,20.0,138.78,138.73,7.2081]
[1718887011391,7.2052,138.79,138.73,7.2079]
[1718887011706,27.2057,138.78,138.73,7.2079]
[1718887011882,27.2057,138.78,138.72,7.2085]
[1718887011883,20.0,138.77,138.72,7.2085]
[1718887012617,20.0,138.77,138.74,7.2076]
[1718887012775,20.0,138.79,138.74,7.2076]
[1718887012982,7.2057,138.78,138.73,7.2081]
[1718887013206,7.2057,138.78,138.67,6.6302]
[1718887013207,20.0,138.77,138.6,32.1818]
[1718887013485,21.8006,138.76,138.66,7.2118]
[1718887013784,45.0,138.75,138.61,26.13]
[1718887013991,20.0,138.75,138.7,7.2094]
[1718887014215,20.0,138.75,138.69,7.2102]
[1718887014387,20.0,138.75,138.7,7.2097]
[1718887014588,20.0,138.75,138.71,7.2091]
[1718887014920,6.6532,138.79,138.65,26.13]
[1718887015198,7.2064,138.77,138.71,7.2089]
[1718887015407,6.6532,138.79,138.69,0.17]
[1718887015609,20.0,138.78,138.73,7.2081]
[1718887015913,27.2056,138.78,138.73,7.2081]
[1718887016109,20.0,138.78,138.72,7.2086]
[1718887016292,20.0,138.78,138.71,0.17]
[1718887016494,7.2071,138.76,138.7,7.3796]
[1718887016700,20.0,138.75,138.64,37.131]
[1718887016888,45.0,138.75,138.67,7.2112]
[1718887017093,20.17,138.74,138.63,15.0501]
[1718887017302,7.2092,138.72,138.66,7.2117]
[1718887017507,20.0,138.71,138.67,7.2112]
[1718887017824,27.2078,138.74,138.68,7.2107]
[1718887018183,27.2078,138.74,138.67,7.2111]
[1718887018184,7.2084,138.73,138.67,7.2111]
[1718887018389,20.0,138.72,138.67,7.2111]
[1718887019019,20.0,138.72,138.68,7.2108]
[1718887019217,27.2087,138.72,138.66,0.34]
[1718887019427,7.2093,138.71,138.66,7.3817]
[1718887019589,27.2089,138.72,138.67,7.2112]
[1718887020202,20.0,138.72,138.68,7.2107]
[1718887020390,20.0,138.76,138.65,0.17]
[1718887020592,20.0,138.78,138.65,0.51]
[1718887020804,7.208,138.74,138.68,7.2104]
[1718887021008,20.0,138.73,138.66,0.34]
[1718887021293,7.2072,138.75,138.7,7.2096]
[1718887021507,7.2087,138.72,138.66,7.2116]
[1718887021790,0.17,138.76,138.68,7.2107]
[1718887021994,7.2083,138.73,138.67,7.2111]
[1718887022195,7.2091,138.72,138.57,21.63]
[1718887022491,20.0,138.71,138.57,21.63]
[1718887022797,20.0,138.71,138.65,0.17]
[1718887022990,20.0,138.73,138.65,0.68]
[1718887023185,265.80346215,138.79,138.65,0.68]
[1718887023403,7.2075,138.75,138.65,0.68]
[1718887023596,7.2075,138.75,138.69,7.2099]
[1718887024292,7.2068,138.76,138.71,7.2092]
[1718887024492,7.2072,138.75,138.7,7.2095]
[1718887024690,20.0,138.74,138.7,7.2095]
[1718887025509,20.0,138.75,138.7,7.2095]
[1718887025722,20.0,138.75,138.68,0.17]
[1718887026008,260.0532,138.79,138.74,7.2074]
[1718887026315,260.0532,138.79,138.71,0.17]
[1718887026615,15.8369,138.8,138.71,0.34]
[1718887026817,6.2747,138.82,138.73,0.17]
[1718887027110,23.2029,138.84,138.78,7.2054]
[1718887027290,7.2031,138.83,138.78,7.2054]
[1718887027608,20.0,138.83,138.79,7.2049]
[1718887027816,20.0,138.83,138.8,7.2044]
[1718887028023,20.0,138.83,138.78,7.3755]
[1718887028199,16.0002,138.84,138.77,0.17]
[1718887028403,7.2036,138.82,138.77,0.17]
[1718887029115,18.0078,138.83,138.76,0.34]
[1718887029307,7.2062,138.77,138.74,20.0]
[1718887029514,65.0,138.82,138.74,20.0]
[1718887029813,7.2052,138.79,138.74,27.2077]
[1718887029991,7.2063,138.77,138.68,6.6436]
[1718887030194,6.1147,138.78,138.71,7.2092]
[1718887030390,20.0,138.77,138.72,7.2087]
[1718887031003,27.2062,138.77,138.72,7.2087]
[1718887031205,20.0,138.77,138.68,6.6436]
[1718887031401,35.5466,138.77,138.66,15.2099]
[1718887032017,20.0,138.77,138.74,7.2076]
[1718887032211,20.0,138.77,138.75,7.207]
[1718887032515,22.653,138.81,138.74,0.17]
[1718887032695,7.2023,138.85,138.79,7.2046]
[1718887033020,27.2032,138.83,138.77,0.17]
[1718887033321,20.0,138.83,138.79,7.205]
[1718887033520,20.0,138.84,138.79,7.205]
[1718887033694,20.0,138.84,138.78,0.34]
[1718887033900,16.657,138.86,138.8,0.17]
[1718887034112,16.657,138.86,138.76,0.17]
[1718887034314,7.2045,138.81,138.75,13.526]
[1718887034522,18.0051,138.85,138.76,0.51]
[1718887034813,7.2027,138.84,138.78,7.2055]
[1718887034991,23.8589,138.86,138.76,0.51]
[1718887035194,23.8589,138.86,138.8,0.17]
[1718887035195,7.202,138.85,138.8,0.17]
[1718887035412,7.202,138.85,138.77,0.17]
[1718887035413,20.0,138.84,138.81,7.2038]
[1718887035613,7.2032,138.83,138.77,7.376]
[1718887035920,27.2037,138.82,138.78,0.17]
[1718887036100,7.2037,138.82,138.78,0.17]
[1718887036295,7.2037,138.82,138.77,0.34]
[1718887036495,27.2022,138.85,138.8,0.17]
[1718887037103,7.2026,138.84,138.8,0.17]
[1718887037304,20.0,138.83,138.79,0.17]
[1718887037711,20.0,138.83,138.79,7.3746]
[1718887037999,27.2026,138.84,138.79,7.3746]
[1718887038305,20.0,138.84,138.8,7.2044]
[1718887038520,21.4652,138.9,138.81,0.17]
[1718887038711,21.4652,138.9,138.82,7.2032]
[1718887038712,7.2009,138.87,138.82,7.2032]
[1718887038918,20.0,138.86,138.82,0.17]
[1718887039101,20.0,138.86,138.82,0.34]
[1718887039420,7.2027,138.84,138.79,0.17]
[1718887039719,38.0037,138.86,138.79,0.17]
[1718887039720,7.2034,138.83,138.79,0.17]
[1718887039921,7.2028,138.84,138.79,0.17]
[1718887040098,27.2032,138.83,138.79,0.17]
[1718887040417,20.0,138.86,138.79,0.34]
[1718887040605,20.0,138.86,138.82,7.2035]
[1718887041015,20.0,138.87,138.81,0.17]
[1718887041220,20.0,138.87,138.83,0.17]
[1718887041418,20.0,138.87,138.81,0.34]
[1718887041419,20.0,138.87,138.81,0.17]
[1718887041623,7.2011,138.87,138.81,7.5436]
[1718887042007,27.2006,138.88,138.82,7.2035]
[1718887042731,7.1996,138.9,138.85,0.17]
[1718887042919,22.6141,138.94,138.88,7.2002]
[1718887043230,24.4874,138.96,138.85,0.17]
[1718887043231,6.4966,138.96,138.85,1.61306771]
[1718887043432,16.437,138.99,138.91,0.17]
[1718887043731,27.1954,138.98,138.92,7.1982]
[1718887043948,6.4584,139.01,138.87,0.17]
[1718887044147,24.4436,139.01,138.87,20.34]
[1718887044432,6.4584,139.01,138.88,0.17]
[1718887044622,34.426,138.95,138.86,0.17]
[1718887044824,7.1979,138.93,138.87,7.3704]
[1718887045023,16.4339,138.95,138.87,0.17]
[1718887045221,16.4339,139.0,138.87,0.17]
[1718887045539,7.1959,138.97,138.91,7.1987]
[1718887045717,20.0,138.96,138.87,0.17]
[1718887045922,37.9871,138.99,138.89,0.17]
[1718887045923,20.0,138.99,138.89,0.17]
[1718887046245,20.0,138.99,138.91,7.1986]
[1718887046246,7.196,138.97,138.91,7.1986]
[1718887046532,20.0,138.96,138.92,7.1983]
[1718887046714,20.0,138.96,138.91,7.3688]
[1718887047124,27.1963,138.96,138.91,0.17]
[1718887047320,7.1969,138.95,138.84,6.5013]
[1718887047548,27.1967,138.96,138.9,7.1992]
[1718887048039,27.1967,138.96,138.91,7.1988]
[1718887048337,20.0,138.96,138.92,7.3683]
[1718887048515,16.4339,139.0,138.94,7.1972]
[1718887048516,20.0,138.99,138.94,7.1972]
[1718887048722,275.12619198,139.04,138.96,0.17]
[1718887048723,15.8812,139.04,138.96,0.17]
[1718887049041,15.8812,139.04,138.96,0.34]
[1718887049215,7.1927,139.03,138.96,0.34]
[1718887049541,24.5485,139.07,138.96,0.34]
[1718887049843,7.1925,139.04,138.98,7.3651]
[1718887050139,7.1922,139.04,138.98,0.17]
[1718887050521,27.1927,139.03,138.98,0.34]
[1718887051135,20.0,139.03,138.97,0.17]
[1718887051358,7.1941,139.01,138.96,0.17]
[1718887051636,20.0,139.04,138.93,20.0]
[1718887051637,20.0,139.0,138.93,0.17]
[1718887051941,7.1953,138.98,138.93,0.68]
[1718887052141,7.1949,138.99,138.93,7.8774]
[1718887052479,27.1952,138.98,138.93,0.34]
[1718887052736,20.0,138.98,138.88,6.0752]
[1718887052937,7.1961,138.97,138.91,7.1985]
[1718887053143,20.0,138.96,138.88,6.0752]
[1718887053442,7.1961,138.97,138.91,7.1984]
[1718887053610,20.0,138.96,138.91,7.1984]
[1718887053816,27.1963,138.96,138.9,7.1992]
[1718887054235,27.1963,138.96,138.91,7.1986]
[1718887054236,20.0,138.96,138.91,7.1986]
[1718887054545,20.0,138.96,138.91,7.1988]
[1718887054844,6.1989,138.99,138.88,6.0752]
[1718887055050,20.0,138.98,138.94,7.1969]
[1718887055437,20.0,138.98,138.93,7.1977]
[1718887055620,20.0,138.98,138.93,0.17]
[1718887055820,23.5939,139.0,138.93,0.17]
[1718887055821,7.194,139.01,138.93,0.17]
[1718887056016,6.4418,139.03,138.92,0.17]
[1718887056245,7.1954,138.98,138.92,0.17]
[1718887056453,7.1958,138.97,138.92,7.538]
[1718887056830,7.1954,138.98,138.92,7.538]
[1718887057163,7.1954,138.98,138.93,7.1978]
[1718887057360,20.0,138.97,138.88,6.0752]
[1718887057679,20.0,138.97,138.89,0.68]
[1718887058131,7.1959,138.97,138.89,0.68]
[1718887058332,20.0,138.96,138.92,7.198]
[1718887058849,27.1958,138.97,138.92,7.198]
[1718887059233,7.1969,138.95,138.9,7.199]
[1718887059452,27.1974,138.94,138.84,27.232]
[1718887059655,27.1974,138.94,138.85,20.0]
[1718887059846,7.1985,138.92,138.87,7.2009]
[1718887060032,27.1978,138.94,138.85,20.0]
[1718887060353,27.1978,138.94,138.88,7.2001]
[1718887060525,20.0,138.94,138.85,20.0]
[1718887060729,20.0,138.94,138.84,6.552]
[1718887060945,7.1988,138.92,138.86,7.2011]
[1718887061132,20.0,138.91,138.88,7.2003]
[1718887061455,20.0,138.94,138.91,7.1988]
[1718887061636,20.0,138.94,138.9,7.199]
[1718887061950,20.0,138.94,138.84,6.552]
[1718887061951,6.1394,138.99,138.94,7.1973]
[1718887062164,20.0,138.98,138.93,7.1977]
[1718887062634,20.0,138.98,138.89,0.17]
[1718887062635,20.0,138.98,138.92,0.17]
[1718887062838,20.0,138.98,138.93,7.1975]
[1718887063032,20.0,138.98,138.92,0.17]
[1718887063258,7.1956,138.98,138.92,7.5382]
[1718887063565,6.1394,138.99,138.95,0.17]
[1718887064444,20.0,138.98,138.95,0.17]
[1718887064646,20.0,138.99,138.95,0.17]
[1718887065442,27.1949,138.99,138.94,7.1971]
[1718887066366,27.1947,138.99,138.93,7.5376]
[1718887066560,20.0,138.99,138.94,7.367]
[1718887067060,27.1948,138.99,138.94,0.17]
[1718887067269,20.0,138.99,138.94,7.1969]
[1718887067563,20.0,138.99,138.95,7.3666]
[1718887067762,20.0,138.99,138.96,7.1963]
[1718887067949,20.0,138.99,138.97,7.1956]
[1718887068350,6.6119,139.02,138.98,7.1951]
[1718887068755,6.6119,139.02,138.99,7.1943]
[1718887068951,15.914,139.04,138.93,0.17]
[1718887069268,7.1927,139.03,138.93,20.34]
[1718887069466,7.1927,139.03,138.94,0.17]
[1718887069641,7.1938,139.01,138.95,0.17]
[1718887069844,7.1933,139.02,138.95,0.51]
[1718887070460,20.0,139.01,138.92,6.1423]
[1718887070661,20.0,139.02,138.93,0.68]
[1718887070868,45.0,139.01,138.93,0.68]
[1718887071160,27.1944,139.0,138.94,7.1972]
[1718887071365,7.1958,138.97,138.92,7.1983]
[1718887071538,7.1953,138.98,138.92,7.1983]
[1718887071741,20.0,138.97,138.92,7.1983]
[1718887071964,20.0,138.97,138.95,7.1967]
[1718887072264,20.0,138.97,138.93,7.1978]
[1718887072443,20.0,138.97,138.88,13.821]
[1718887072646,7.1957,138.98,138.92,7.198]
[1718887072854,17.9842,139.02,138.89,0.17]
[1718887072855,20.0,138.97,138.89,0.17]
[1718887073054,20.0,138.97,138.89,20.17]
[1718887073363,7.1939,139.01,138.95,7.1968]
[1718887073573,27.1945,139.0,138.94,7.1972]
[1718887073857,7.1958,138.97,138.92,7.198]
[1718887074262,20.0,138.96,138.92,7.198]
[1718887074442,20.0,138.96,138.93,7.1976]
[1718887074844,20.0,138.98,138.94,7.1971]
[1718887075261,20.0,138.98,138.95,7.1968]
[1718887075563,20.0,138.99,138.9,0.17]
[1718887075762,20.0,138.99,138.9,0.68]
[1718887075972,20.0,138.99,138.95,7.1964]
[1718887076152,20.0,139.0,138.95,7.1964]
[1718887076352,27.1943,139.0,138.9,0.68]
[1718887076541,27.1943,139.0,138.94,7.1971]
[1718887076867,27.1943,139.0,138.95,7.1968]
[1718887077166,20.0,139.0,138.95,7.1968]
[1718887077460,20.0,139.0,138.96,7.1962]
[1718887077864,20.0,139.0,138.97,7.1957]
[1718887078158,20.0,139.01,138.97,7.1957]
[1718887078356,7.1927,139.03,138.98,0.17]
[1718887078550,23.1064,139.04,138.98,0.34]
[1718887079936,15.914,139.04,138.98,0.34]
[1718887080138,20.0,139.03,138.98,0.34]
[1718887080339,20.0,139.03,138.99,0.34]
[1718887080662,27.1924,139.04,138.99,0.34]
[1718887080972,7.1927,139.03,138.99,0.34]
[1718887081168,20.0,139.02,138.99,0.34]
[1718887081389,27.1933,139.02,138.98,0.17]
[1718887081666,20.0,139.02,138.98,0.51]
[1718887081867,20.0,139.04,138.98,0.51]
[1718887082649,20.0,139.04,138.99,0.17]
[1718887082849,27.1922,139.04,138.99,0.17]
[1718887083264,7.1928,139.03,138.99,0.17]
[1718887083460,7.1928,139.03,138.98,0.34]
[1718887083764,7.1927,139.03,138.98,0.34]
[1718887083950,7.193,139.03,138.98,0.34]
[1718887084260,20.0,139.02,138.95,0.17]
[1718887084461,20.0,139.02,138.95,0.68]
[1718887084678,7.1941,139.01,138.95,0.68]
[1718887084975,20.0,139.02,138.95,0.68]
[1718887085151,20.0,139.02,138.92,6.2523]
[1718887085359,7.1944,139.0,138.94,7.197]
[1718887085548,27.1947,138.99,138.94,7.197]
[1718887085869,7.1947,138.99,138.94,7.197]
[1718887086069,7.1954,138.98,138.92,6.2523]
[1718887086371,37.9843,139.02,138.92,6.2523]
[1718887086561,7.1938,139.01,138.92,6.2523]
[1718887086765,20.0,139.0,138.95,7.1966]
[1718887086974,20.0,139.02,138.92,6.2523]
[1718887087346,20.0,139.02,138.98,7.1949]
[1718887087547,27.1927,139.03,138.98,7.1949]
[1718887087754,27.1927,139.03,138.97,7.1955]
[1718887087965,7.1932,139.02,138.97,7.1955]
[1718887088449,20.0,139.01,138.97,7.1955]
[1718887088765,7.1945,139.0,138.92,6.2523]
[1718887088972,20.0,138.99,138.94,0.17]
[1718887089351,20.0,139.0,138.94,0.17]
[1718887089676,7.194,139.01,138.94,0.17]
[1718887089847,20.0,139.0,138.94,0.17]
[1718887090379,20.0,139.01,138.94,0.17]
[1718887090551,20.0,139.01,138.97,7.1955]
[1718887090753,7.1943,139.0,138.94,0.17]
[1718887090966,20.0,138.99,138.94,0.17]
[1718887091278,27.1952,138.99,138.94,0.17]
[1718887091457,7.1958,138.97,138.92,7.1982]
[1718887091661,20.0,138.99,138.87,6.089]
[1718887091880,6.6376,138.97,138.88,20.0]